{"text_format":"1","workbook":"xlsx","n_sheets":11,"sheets":["Informations importantes","1 Structure porteuse de projet","2 Données du projet","3 Multiplication","4 Effets et utilité","5 Durée","6 Coûts","7 Échéancier","8 Confirmation","Listen","Berechnungen"],"not_rendered":{"charts":0,"images":3,"macros":0,"external_links":0,"defined_names":16,"comments":0,"pivot_tables":0},"unopened":[],"bounds":{"document_bytes":16777216,"sheet_cells":100000,"rows_first":2000,"rows_last":500,"rows_between":2000,"halvings":0,"cell_chars":16384,"cell_head_chars":4096},"cells_cut":0,"cells_raw":0,"read":"whole","date_system":"1900"}

{"sheet":"Informations importantes","index":0,"n_rows":28,"n_cols":12,"rows_kept":28,"cut":false,"hidden":false,"merged":[[2,1,2,14],[18,1,18,9],[17,1,17,10],[12,1,12,13]]}
[]
[]
[null,"Adapt+ : Programme d'encouragement pour l'adaptation aux changements climatiques"]
[]
[]
[null,"Soumission des candidatures et informations détaillées"]
[]
[]
[null,"Toutes les informations pertinentes concernant Adapt+, l'appel à projets ainsi que les thèmes et critères des projets sont disponibles sous le lien suivant :"]
[null,"Programme d'encouragement Adapt+ ",null,null,null,"Ces pages font partie de la plateforme d'information Adaptation aux changements climatiques de l'OFEV."]
[]
[]
[null,"La demande complète doit être soumise à l'OFEV au plus tard le 31 août 2025. Les demandes incomplètes, reçues après la date limite ou ne correspondant pas aux thèmes ou aux critères de l'appel à projets seront rejetées sans examen."]
[]
[null,"Le respect des exigences listées seul n'ouvre pas de droit à l'octroi d'une aide financière. "]
[]
[]
[null,"Pour toute question concernant votre demande d'aide financière, veuillez vous adresser à :",null,null,null,null,null,null,null,null,null,"helpadaptplus@bafu.admin.ch"]
[null,"Pour toute question d'ordre général concernant le programme, veuillez vous adresser à :",null,null,null,null,null,null,null,null,null,"adaptplus@bafu.admin.ch"]
[]
[]
[]
[]
[null,null,null,"Texte",null,"Les cases marquées en vert contiennent des informations complémentaires sur la question."]
[]
[null,null,null,"Question*",null,"Les questions marquées d'un astérisque sont facultatives."]
[]
[null,null,null,null,null,"Cette icône indique que des documents spécifiques seront à téléverser lors de la soumission définitive de la demande."]

{"sheet":"1 Structure porteuse de projet","index":1,"n_rows":55,"n_cols":4,"rows_kept":55,"cut":false,"hidden":false,"merged":[[23,3,23,5],[26,3,26,5],[29,3,29,5],[37,3,37,5],[40,3,40,5],[28,3,28,5],[4,1,4,4],[10,8,17,12],[17,3,17,5],[20,3,20,5],[10,3,10,5],[11,3,11,5],[13,3,13,5],[14,3,14,5]]}
[]
[]
[null,"Adapt+"]
[]
[null,"1 Structure porteuse de projet"]
[]
[null,"Veuillez indiquer ici les informationsnécessaires sur la structure porteuse du projet et saisir les coordonnées d'une personne de contact (responsable de projet) ainsi que d'une suppléance (obligatoire)."]
[]
[null,"1.1 Personne de contact (responsable de projet)",null,"1.2 Suppléance"]
[]
[null,"Civilité ",null,"Civilité"]
[]
[]
[null,"Nom",null,"Nom"]
[]
[]
[null,"Prénom",null,"Prénom"]
[]
[]
[null,"Courriel",null,"Courriel"]
[]
[]
[null,"Langue de correspondance",null,"Langue de correspondance"]
[]
[]
[null,"Numéro de téléphone direct",null,"Numéro de téléphone direct"]
[]
[]
[null,"Numéro de téléphone central (standard)",null,"Numéro de téléphone central (standard)"]
[]
[]
[]
[]
[]
[null,"1.3 Structure porteuse"]
[]
[null,"Nom de la structure",null,"Site internet*"]
[null,null,null,"https://"]
[]
[null,"Service spécifique*"]
[]
[]
[null,"Adresse, rue et numéro"]
[]
[]
[null,"Code postal"]
[]
[]
[null,"Commune/ville"]
[]
[]
[null,"Canton"]
[]
[]
[null,"UID*"]

{"sheet":"2 Données du projet","index":2,"n_rows":125,"n_cols":10,"rows_kept":125,"cut":false,"hidden":false,"merged":[[123,1,123,4],[17,3,17,6],[42,1,45,1],[103,1,106,1],[53,5,54,5],[53,6,54,6],[103,3,106,5],[75,3,75,6],[76,3,76,6],[87,3,87,6],[72,3,72,6],[73,3,73,6],[74,3,74,6],[75,1,75,2],[77,3,78,3],[77,4,78,4],[11,3,11,6],[66,3,66,6],[12,3,14,6],[18,10,18,13],[68,5,69,5],[68,6,69,6],[47,3,48,5]]}
[]
[]
[null,"Adapt+"]
[]
[null,"2 Données du projet "]
[]
[null,"Veuillez saisir ici les informations générales relatives au projet."]
[]
[]
[null,"2.1 Informations générales"]
[]
[null,"2.1.1 Titre du projet (rester succinct)",null,"2.1.2 fait suite à un précédent projet:*"]
[null,null,null,"Description succincte du précédent projet"]
[]
[null,"2.1.3 Bref résumé du projet"]
[null,"Description du projet en quelques phrases"]
[]
[null,"2.1.4 Vision du projet, transformation visée à long terme"]
[]
[]
[]
[null,"2.2 Niveau de mise en œuvre du projet"]
[]
[null,"2.2.1 Niveau de mise en œuvre"]
[null,"À quel niveau le projet sera-t-il mis en œuvre ? Veuillez sélectionner."]
[]
[null,"2.2.2 Dans quel canton le projet sera-t-il mise en œuvre ?"]
[null,"Veuillez sélectionner."]
[]
[null,"2.2.3 Dans quelle comune le projet sera-t-il mise en œuvre ?"]
[null,"Énumérez toutes les communes concernées."]
[]
[null,"2.2.4 Langue du projet"]
[]
[]
[]
[null,"2.3 Contribution à l'adaptation"]
[]
[null,"2.3.1 À quel objectif de l'adaptation le projet contribue-t-il ?"]
[null,"Veuillez sélectionner."]
[]
[null,"2.3.2 Comment le projet y contribue-t-il ?"]
[null,"Veuillez vous limiter à 900 caractères maximum."]
[]
[]
[]
[]
[null,null,null,"Vous trouverez ici les principes de la statégie d'adaptation."]
[null,"2.4 Contribution aux principes de la stratégie d'adaptation du Conseil fédéral"]
[]
[null,"2.4.1 La mesure est-elle conforme aux principes de la stratégie d'adaptation ?"]
[null,"1) en termes de durabilité",null,"3) Compatibilité adaptation et protection du climat (réduction des émissions) ?"]
[]
[null,0,null,null,0,"Non éligible","Eligible",null,null,{"$f":"IF(SUM(B54,B60,E54,E60)=4,\"WAHR\",\"FALSCH\")","v":"FALSCH"}]
[]
[]
[]
[null,"2) Action coordonnée de la Confédération, des cantons, des communes et des particuliers ?",null,"4) Prise en compte des connaissances scientifiques"]
[]
[null,0,null,null,0]
[]
[]
[]
[]
[null,"2.5 Exécution du projet"]
[]
[null,"2.5.1 Le projet a-t-il déjà démarré ?",null,"2.5.2 Le projet sera-t-il mis en œuvre même sans contribution fédérale ?"]
[]
[null,2,null,null,2,"Non éligible","Eligible",null,null,{"$f":"IF(SUM(B69,E69)>3,\"FALSCH\",\"WAHR\")","v":"FALSCH"}]
[]
[]
[]
[]
[null,"2.5.3 Autorisations"]
[]
[null,"Toutes les autorisations nécessaires à la réalisation du projet ont-elles été obtenues ?"]
[null,1]
[null,null,null,"Non éligible","Eligible"]
[]
[]
[]
[]
[]
[]
[]
[null,"Téléverser le justificatif"]
[]
[]
[null,"2.6 Organisation du projet"]
[]
[null,"Veuillez présenter l'organigramme du projet (max. 1 page A4)."]
[]
[null,"2.6.1 Organisations partenaires du projet"]
[null,"Noms","Interlocuteur","Accord écrit","Mission"]
[null,null,null,false]
[null,null,null,false]
[null,null,null,false]
[null,null,null,false]
[null,null,null,false]
[]
[]
[]
[null,"2.6.2 Documents concernant l'organisation du projet (organigramme et accords écrits)"]
[null,"Téléverser un nouveau document"]
[]
[]
[]
[]
[]
[null,"2.7 Secteur"]
[]
[null,"2.7.1 À quel secteur s'adresse le projet ?"]
[null,"Veuillez sélectionner."]
[]
[]
[null,"2.8 Risques"]
[]
[null,"2.8.1 Quel est le principal risque traité par le projet ?"]
[null,"Veuillez sélectionner."]
[]
[null,"2.8.2 Quel autre risque est également pris en considération ?*"]
[null,"Veuillez sélectionner."]
[]
[null,"2.8.3 Quel autre risque est également pris en considération ?*"]
[null,"Veuillez sélectionner."]

{"sheet":"3 Multiplication","index":3,"n_rows":79,"n_cols":4,"rows_kept":79,"cut":false,"hidden":false,"merged":[[60,1,62,1],[4,1,4,5],[39,3,42,8],[78,1,82,1],[30,3,30,6],[11,1,14,1],[30,1,33,1],[39,1,42,1],[53,1,55,1],[29,3,29,6],[70,1,73,1],[27,3,27,6],[65,1,67,1],[64,1,64,2],[69,1,69,2],[19,1,19,4],[57,1,57,3],[59,1,59,2],[47,1,47,2]]}
[]
[]
[null,"Adapt+"]
[]
[null,"3 Questions relatives à la multiplication"]
[]
[null,"Veuillez saisir les informations relatives à la multiplication et téléverser les documents nécessaires."]
[]
[null,"3.1 Problématique du projet"]
[]
[null,"3.1.1 À quelle problématique votre projet s'attaque-t-il concrètement ?"]
[]
[]
[]
[]
[]
[]
[null,"3.2 Mesures"]
[]
[null,"3.2.1 Quelles mesures d'adaptation seront mises en œuvre ? (parmis la liste fournie)"]
[]
[]
[null,"3.2.2 Mesures supplémentaires ?*"]
[]
[]
[]
[null,"3.2.3 Autre mesure éprouvée (hors liste)*"]
[null,"Si oui, laquelle?",null,"Si votre mesure ne figure pas dans la liste ci-dessus, vous pouvez la décrire ci-contre."]
[]
[null,"3.2.4 Citez un exemple de projet y afférent mis en œuvre:",null,"3.2.5 Lien vers l'exemple de projet"]
[null,null,null,"https://"]
[]
[]
[]
[]
[]
[null,"3.3 Situation initiale dans la zone du projet"]
[]
[null,"3.3.1 Quelle est la situation initiale dans la zone du projet par rapport à la problématique ?",null,"3.2.5 En quoi le projet se distingue-t-il de la mesure éprouvée ?"]
[]
[]
[]
[]
[]
[]
[null,"3.4 Travaux terminés ou en cours"]
[]
[null,"3.4.1 Existe-t-il des travaux spécifiques achevés ou en cours qui sont pertinents pourla problématique et le projet ?"]
[]
[null,"oui"]
[null,"non"]
[]
[null,"3.4.2 Décrivez ces travaux et leur pertinence"]
[]
[0]
[]
[]
[null,"3.5 Contribution à l'adaptation aux changements climatiques"]
[]
[null,"3.5.1 Comment le projet contribue-t-il à la protection de la population ou des biens matériels et/ou à l'amélioration de la capacité d'adaptation de la société, de l'économie et de l'environnement ?"]
[]
[]
[]
[]
[null,"3.5.2 En quoi le projet est-il pertinent pour l'adaptation aux changements climatiques dans la région concernée ?"]
[]
[]
[]
[]
[null,"3.5.3 Veuillez décrire la part des coûts de votre mesure qui, selon vous, peut être éligible à l'octroi d'une aide financière Adapt+."]
[]
[]
[]
[]
[]
[null,"3.6 Documents"]
[]
[null,"3.6.1 Documents supplémentaires éventuels concernant la multiplication"]
[null,"Téléverser un nouveau document"]

{"sheet":"4 Effets et utilité","index":4,"n_rows":108,"n_cols":4,"rows_kept":108,"cut":false,"hidden":false,"merged":[[80,3,80,7],[81,3,81,7],[82,3,83,7],[46,1,48,1],[6,3,14,7],[76,3,77,7],[78,3,78,7],[107,1,110,1],[12,1,14,1],[22,1,24,1],[97,1,99,1],[92,1,94,1],[16,1,16,2],[59,1,62,1],[81,1,83,1],[41,1,43,1],[36,1,38,1],[27,1,29,1],[71,1,73,1],[79,3,79,7],[17,1,19,1],[96,1,96,2],[45,1,45,2],[86,1,88,1],[21,1,21,2]]}
[]
[]
[null,"Adapt+"]
[]
[null,"4 Utilité et effets"]
[]
[null,"Veuillez indiquer ici l'utilité et les effets de votre projet, la manière dont il interagit avec vos groupes cibles et les obstacles que vous pourriez rencontrer.",null,"L’effet d’une mesure exprime son influence sur un indicateur climatique ou sur l’état des systèmes naturels. Il peut s’agir, par exemple, d’une baisse de la température obtenue sur une place publique en période de canicule grâce à la plantation d’arbres ou d’une réduction de l’assèchement des sols agricoles grâce à l’aménagement d’éléments-éponges ou à une exploitation adaptée au site. \nL’utilité d’une mesure décrit l’ampleur des dommages qu’elle permet d’éviter, par exemple le nombre de personnes qui bénéficient d’une atténuation de la chaleur ou les pertes de rendement potentiellement évitées dans l’agriculture."]
[]
[]
[null,"4.1 Questions sur les effets"]
[]
[null,"4.1.1 Quels effets (outcomes) sont attendus du projet ?"]
[]
[]
[]
[]
[null,"4.1.2 Quels indicateurs et méthodes de collecte permettent de vérifier si les objectifs en termes d'efficacité (outcomes) sont atteints ?"]
[]
[]
[]
[]
[null,"4.1.3 Quels produits (outputs) seront élaborés dans le cadre du projet ? Veuillez décrire en détail les prestations qui seront fournies ou les produits qui seront créés."]
[]
[]
[]
[]
[null,"4.1.4 Quelle durée d'effet de la mesure est attendue (estimation conservatrice) ?"]
[]
[]
[]
[]
[]
[]
[null,"4.2 Questions relatives aux groupes cibles"]
[]
[null,"4.2.1 Quels groupes cibles sont concernés dans la zone du projet ?"]
[]
[]
[]
[]
[null,"4.2.2 Comment ces groupes cibles seront-ils sensibilisés et impliqués ?"]
[]
[]
[]
[]
[null,"4.2.3 Des conflits d'usage ou d'objectifs sont-ils attendus lors de l'introduction de la mesure ? Si oui, lesquels ?"]
[]
[]
[]
[]
[null,"4.3 Questions relatives aux mesures"]
[]
[null,"4.3.1 La mesure d'adaptation contribue-t-elle directement à éviter des dommages ?"]
[]
[]
[null,0]
[]
[]
[null,"4.3.2 Description de la manière dont la mesure y contribue :"]
[]
[]
[]
[]
[]
[null,"4.3.3 La mesure d'adaptation permet-elle d'éviter des dommages irréversibles ?"]
[]
[null,0]
[]
[]
[]
[null,"4.3.4 Description de la manière dont la mesure y contribue :"]
[]
[]
[]
[]
[null,"4.3.5 La mesure d'adaptation réduit-elle plusieurs risques à la fois ?"]
[null,null,null,"Par risques on entend ici les défis transversaux selon l'analyse des risques climatiques"]
[null,0]
[null,null,null,"- Accentuation des fortes chaleurs"]
[null,null,null,"- Accroissement de la sécheresse estivale"]
[null,"4.3.6 Si oui, lesquels et comment ?*",null,"- Augmentation du potentiel de danger"]
[null,null,null,"- Hausse des températures moyennes"]
[null,null,null,"- Modification croissante des milieux naturels et de la composition des espèces"]
[]
[]
[null,"4.3.7 Combien de personnes bénéficieront de cette mesure d'adaptation ?"]
[]
[]
[]
[]
[]
[null,"4.3.8 Quels sont les autres avantages monétaires de cette mesure ?"]
[]
[]
[]
[]
[null,"4.3.9 La mesure d'adaptation peut-elle contribuer à long terme à éviter des dommages ou à accroître la capacité d'adaptation ?"]
[]
[]
[]
[]
[]
[]
[null,"4.4 Documents"]
[]
[]
[null,"4.4.1 Documents concernant les effets et l'utilité"]
[null,"Téléverser un nouveau document"]

{"sheet":"5 Durée","index":5,"n_rows":47,"n_cols":68,"rows_kept":47,"cut":false,"hidden":false,"merged":[[4,1,4,4],[49,22,49,24],[49,25,49,26],[50,22,50,24],[50,25,50,26],[37,2,37,5],[38,2,38,5],[39,2,39,5],[46,1,50,4],[32,2,32,5],[33,2,33,5],[34,2,34,5],[35,2,35,5],[36,2,36,5],[28,2,28,5],[29,2,29,5],[27,2,27,5],[51,22,51,24],[51,25,56,26],[52,22,52,24],[53,22,53,24],[54,22,54,24],[55,22,55,24],[56,22,56,24],[46,6,50,16],[15,56,15,67],[15,44,15,55],[30,2,30,5],[31,2,31,5],[6,1,6,6],[16,2,16,5],[17,2,17,5],[18,2,18,5],[19,2,19,5],[20,2,20,5],[21,2,21,5],[22,2,22,5],[23,2,23,5],[24,2,24,5],[25,2,25,5],[26,2,26,5],[12,1,12,3],[15,8,15,19],[15,20,15,31],[15,32,15,43],[9,8,9,10]]}
[]
[]
[null,"Adapt+"]
[]
[null,"5 Durée du projet"]
[]
[null,"5.1 Durée d'exécution du projet"]
[]
[]
[null,"de : ","2025-11-01","à : ","2027-04-25",null,"durée du projet",null,{"$f":"DATEDIF(C10,E10,\"m\")","v":17},null,null,"mois"]
[]
[]
[null,"5.2 Calendrier prévisionnel simplifié"]
[]
[null,null,null,null,null,null,null,null,"2025-01-01","2025-02-01","2025-03-01","2025-04-01","2025-05-01","2025-06-01","2025-07-01","2025-08-01","2025-09-01","2025-10-01","2025-11-01","2025-12-01","2026-01-01","2026-02-01","2026-03-01","2026-04-01","2026-05-01","2026-06-01","2026-07-01","2026-08-01","2026-09-01","2026-10-01","2026-11-01","2026-12-01","2027-01-01","2027-02-01","2027-03-01","2027-04-01","2027-05-01","2027-06-01","2027-07-01","2027-08-01","2027-09-01","2027-10-01","2027-11-01","2027-12-01","2028-01-01","2028-02-01","2028-03-01","2028-04-01","2028-05-01","2028-06-01","2028-07-01","2028-08-01","2028-09-01","2028-10-01","2028-11-01","2028-12-01","2029-01-01","2029-02-01","2029-03-01","2029-04-01","2029-05-01","2029-06-01","2029-07-01","2029-08-01","2029-09-01","2029-10-01","2029-11-01","2029-12-01"]
[null,null,null,null,null,null,null,null,{"$f":"YEAR(C10)","v":2025},null,null,null,null,null,null,null,null,null,null,null,{"$f":"I16+1","v":2026},null,null,null,null,null,null,null,null,null,null,null,{"$f":"U16+1","v":2027},null,null,null,null,null,null,null,null,null,null,null,{"$f":"AG16+1","v":2028},null,null,null,null,null,null,null,null,null,null,null,{"$f":"AS16+1","v":2029}]
[null,"Type","Description",null,null,null,"début","fin",{"$f":"I15","v":"2025-01-01"},"2025-02-01","2025-03-01","2025-04-01","2025-05-01",{"$f":"N15","v":"2025-06-01"},"2025-07-01","2025-08-01","2025-09-01","2025-10-01","2025-11-01","2025-12-01","2026-01-01","2026-02-01","2026-03-01","2026-04-01","2026-05-01","2026-06-01","2026-07-01","2026-08-01","2026-09-01","2026-10-01","2026-11-01","2026-12-01","2027-01-01","2027-02-01","2027-03-01","2027-04-01","2027-05-01","2027-06-01","2027-07-01","2027-08-01","2027-09-01","2027-10-01","2027-11-01","2027-12-01",{"$f":"AS15","v":"2028-01-01"},"2028-02-01","2028-03-01","2028-04-01","2028-05-01","2028-06-01","2028-07-01","2028-08-01","2028-09-01","2028-10-01","2028-11-01","2028-12-01","2029-01-01","2029-02-01","2029-03-01","2029-04-01","2029-05-01","2029-06-01","2029-07-01","2029-08-01","2029-09-01","2029-10-01","2029-11-01","2029-12-01"]
[null,"Jalon","J1: Achèvement des travaux préparatoires relatifs à la mesure",null,null,null,"2025-01-01","2025-10-01",{"$f":"IF(AND(I$17>=$G18,I$17<=$H18),1,0)","v":1},{"$f":"IF(AND(J$17>=$G18,J$17<=$H18),1,0)","v":1},1,1,1,1,1,1,1,1,0,0,0,0,0,0,0,0,0,0,0,0,0,0,0,0,0,0,0,0,0,0,0,0,0,0,{"$f":"IF(AND(AS$17>=$G18,AS$17<=$H18),1,0)","v":0},{"$f":"IF(AND(AT$17>=$G18,AT$17<=$H18),1,0)","v":0},0,0,0,0,0,0,0,0,0,0,0,0,0,0,0,0,0,0,0,0,0,0]
[null,"Lot de travaux","LT1: Remise en état des travaux",null,null,null,"2025-04-01","2026-08-08",{"$f":"IF(AND(I$17>=$G19,I$17<=$H19),1,0)","v":0},0,0,1,1,1,1,1,1,1,1,1,1,1,1,1,{"$f":"IF(AND(Y$17>=$G19,Y$17<=$H19),1,0)","v":1},1,1,1,0,0,0,0,0,0,0,0,0,0,0,0,{"$f":"IF(AND(AO$17>=$G19,AO$17<=$H19),1,0)","v":0},0,0,0,0,0,0,0,0,0,0,0,0,0,0,0,0,0,0,0,0,0,0,0,0,0,0,0]
[null,"Lot de travaux",null,null,null,null,"2025-11-01","2026-12-01",0,0,0,0,0,0,0,0,0,0,1,1,1,1,1,1,1,1,1,1,1,1,1,1,0,0,0,0,0,0,0,0,0,0,0,0,0,0,0,0,0,0,0,0,0,0,0,0,0,0,0,0,0,0,0,0,0,0,0,0]
[null,"Autres",null,null,null,null,"2026-10-01","2027-10-01",0,0,0,0,0,0,0,0,0,0,0,0,0,0,0,0,0,0,0,0,0,1,1,1,1,1,1,1,1,1,1,1,1,1,0,0,0,0,0,0,0,0,0,0,0,0,0,0,0,0,0,0,0,0,0,0,0,0,0,0]
[null,"Lot de travaux",null,null,null,null,"2025-06-01","2025-08-01",0,0,0,0,0,1,1,1,0,0,0,0,0,0,0,0,0,0,0,0,0,0,0,0,0,0,0,0,0,0,0,0,0,0,0,0,0,0,0,0,0,0,0,0,0,0,0,0,0,0,0,0,0,0,0,0,0,0,0,0]
[null,"Jalon",null,null,null,null,"2026-01-01","2026-12-01",0,0,0,0,0,0,0,0,0,0,0,0,1,1,1,1,1,1,1,1,1,1,1,1,0,0,0,0,0,0,0,0,0,0,0,0,0,0,0,0,0,0,0,0,0,0,0,0,0,0,0,0,0,0,0,0,0,0,0,0]
[null,null,null,null,null,null,null,null,0,0,0,0,0,0,0,0,0,0,0,0,0,0,0,0,0,0,0,0,0,0,0,0,0,0,0,0,0,0,0,0,0,0,0,0,0,0,0,0,0,0,0,0,0,0,0,0,0,0,0,0,0,0,0,0,0,0,0,0]
[null,"Fin","Achèvement du projet et rapport final",null,null,null,"2027-12-01","2027-12-01",0,0,0,0,0,0,0,0,0,0,0,0,0,0,0,0,0,0,0,0,0,0,0,0,0,0,0,0,0,0,0,0,0,0,0,1,0,0,0,0,0,0,0,0,0,0,0,0,0,0,0,0,0,0,0,0,0,0,0,0]
[null,null,null,null,null,null,null,null,0,0,0,0,0,0,0,0,0,0,0,0,0,0,0,0,0,0,0,0,0,0,0,0,0,0,0,0,0,0,0,0,0,0,0,0,0,0,0,0,0,0,0,0,0,0,0,0,0,0,0,0,0,0,0,0,0,0,0,0]
[null,null,null,null,null,null,null,null,0,0,0,0,0,0,0,0,0,0,0,0,0,0,0,0,0,0,0,0,0,0,0,0,0,0,0,0,0,0,0,0,0,0,0,0,0,0,0,0,0,0,0,0,0,0,0,0,0,0,0,0,0,0,0,0,0,0,0,0]
[null,null,null,null,null,null,null,null,0,0,0,0,0,0,0,0,0,0,0,0,0,0,0,0,0,0,0,0,0,0,0,0,0,0,0,0,0,0,0,0,0,0,0,0,0,0,0,0,0,0,0,0,0,0,0,0,0,0,0,0,0,0,0,0,0,0,0,0]
[null,null,null,null,null,null,null,null,0,0,0,0,0,0,0,0,0,0,0,0,0,0,0,0,0,0,0,0,0,0,0,0,0,0,0,0,0,0,0,0,0,0,0,0,0,0,0,0,0,0,0,0,0,0,0,0,0,0,0,0,0,0,0,0,0,0,0,0]
[null,null,null,null,null,null,null,null,0,0,0,0,0,0,0,0,0,0,0,0,0,0,0,0,0,0,0,0,0,0,0,0,0,0,0,0,0,0,0,0,0,0,0,0,0,0,0,0,0,0,0,0,0,0,0,0,0,0,0,{"$f":"IF(AND(BH$17>=$G30,BH$17<=$H30),1,0)","v":0},0,0,0,0,0,0,0,0]
[null,null,null,null,null,null,null,null,0,0,0,0,0,0,0,0,0,0,0,0,0,0,0,0,0,0,0,0,0,0,0,0,0,0,0,0,0,0,0,0,0,0,0,0,0,0,0,0,0,0,0,0,0,0,0,0,0,0,0,0,0,0,0,0,0,0,0,0]
[null,null,null,null,null,null,null,null,0,0,0,0,0,0,0,0,0,0,0,0,0,0,0,0,0,0,0,0,0,0,0,0,0,0,0,0,0,0,0,0,0,0,0,0,0,0,0,0,0,0,0,0,0,0,0,0,0,0,0,0,0,0,0,0,0,0,0,0]
[null,null,null,null,null,null,null,null,0,0,0,0,0,0,0,0,0,0,0,0,0,0,0,0,0,0,0,0,0,0,0,0,0,0,0,0,0,0,0,0,0,0,0,0,0,0,0,0,0,0,0,0,0,0,0,0,0,0,0,0,0,0,0,0,0,0,0,0]
[null,null,null,null,null,null,null,null,0,0,0,0,0,0,0,0,0,0,0,0,0,0,0,{"$f":"IF(AND(X$17>=$G34,X$17<=$H34),1,0)","v":0},0,0,0,0,0,0,0,0,0,0,0,0,0,0,0,{"$f":"IF(AND(AN$17>=$G34,AN$17<=$H34),1,0)","v":0},0,0,0,0,0,0,0,0,0,0,0,0,0,0,0,{"$f":"IF(AND(BD$17>=$G34,BD$17<=$H34),1,0)","v":0},0,0,0,0,0,0,0,0,0,0,0,0]
[null,null,null,null,null,null,null,null,0,0,0,0,0,0,0,0,0,0,0,0,0,0,0,0,0,0,0,0,0,0,0,0,0,0,0,0,0,0,0,0,0,0,0,0,0,0,0,0,0,0,0,0,0,0,0,0,0,0,0,0,0,0,0,0,0,0,0,0]
[null,null,null,null,null,null,null,null,0,0,0,0,0,0,0,0,0,0,0,0,0,0,0,0,0,0,0,0,0,0,0,0,0,0,0,0,0,0,0,0,0,0,0,0,0,0,0,0,0,0,0,0,0,0,0,0,0,0,0,0,0,0,0,0,0,0,0,0]
[null,null,null,null,null,null,null,null,0,0,0,0,0,0,0,0,0,0,0,0,0,0,0,0,0,0,0,0,0,0,0,0,0,0,0,0,0,0,0,0,0,0,0,0,0,0,0,0,0,0,0,0,0,0,0,0,0,0,0,0,0,0,0,0,0,0,0,0]
[null,null,null,null,null,null,null,null,0,0,0,0,0,0,0,0,0,0,0,0,0,0,0,0,0,0,0,0,0,0,0,0,0,0,0,0,0,0,0,0,0,0,0,0,0,0,0,0,0,0,0,0,0,0,0,0,0,0,0,0,0,0,0,0,0,0,0,0]
[null,null,null,null,null,null,null,null,0,0,0,0,0,0,0,0,0,0,0,0,0,0,0,0,0,0,0,0,0,0,0,0,0,0,0,0,0,0,0,0,0,0,0,0,0,0,0,0,0,0,0,0,0,0,0,0,0,0,0,0,0,0,0,0,0,0,0,0]
[null,null,null,null,null,null,null,null,0,0,0,0,0,0,0,0,0,0,0,0,0,0,0,0,0,0,0,0,0,0,0,0,0,0,0,0,0,0,0,0,0,0,0,0,0,0,0,0,0,0,0,0,0,0,0,0,{"$f":"IF(AND(BE$17>=$G40,BE$17<=$H40),1,0)","v":0},0,0,0,0,0,0,0,0,0,0,0]
[]
[]
[]
[null,"5.2.1 Calendrier et plan de travail détaillés"]
[]
[null,"Téléverser le calendrier annuel détaillé du projet"]
[null,"Téléverser un nouveau document",null,null,null,null,"Veuillez tenir à disposition tous les documents supplémentaires relatifs au « calendrier et plan de travail » afin de les envoyer à Adapt+ en temps voulu."]

{"sheet":"6 Coûts","index":6,"n_rows":146,"n_cols":16,"rows_kept":146,"cut":false,"hidden":false,"merged":[[45,1,45,7],[52,2,52,4],[52,5,52,6],[53,2,53,4],[53,5,53,6],[4,1,4,9],[9,1,9,7],[34,1,34,7],[38,4,38,5],[7,9,9,12],[57,2,57,4],[57,5,57,6],[58,2,58,4],[58,5,58,6],[59,2,59,4],[59,5,59,6],[54,2,54,4],[54,5,54,6],[55,2,55,4],[55,5,55,6],[56,2,56,4],[56,5,56,6],[60,2,60,4],[60,5,60,6],[65,1,66,1],[65,2,66,3],[65,4,66,4],[65,5,66,5],[65,6,66,6],[65,7,66,8],[65,9,66,11],[67,2,67,3],[67,7,67,8],[67,9,67,11],[68,13,68,17],[66,13,67,17],[68,2,68,3],[68,7,68,8],[68,9,68,11],[69,2,69,3],[69,7,69,8],[72,13,76,17],[73,2,73,3],[73,7,73,8],[73,9,73,11],[74,2,74,3],[74,7,74,8],[74,9,74,11],[69,9,69,11],[70,2,70,3],[70,7,70,8],[70,9,70,11],[71,2,71,3],[71,7,71,8],[71,9,71,11],[75,2,75,3],[75,7,75,8],[75,9,75,11],[76,2,76,3],[76,7,76,8],[72,2,72,3],[72,7,72,8],[72,9,72,11],[86,2,86,4],[86,5,86,7],[81,2,81,4],[81,5,81,7],[81,9,81,11],[82,2,82,4],[82,5,82,7],[83,2,83,4],[83,5,83,7],[87,2,87,4],[87,5,87,7],[91,1,91,7],[96,2,96,5],[96,6,96,8],[111,2,111,4],[111,5,111,7],[111,8,111,10],[76,9,76,11],[97,2,97,5],[98,2,98,5],[99,2,99,5],[100,2,100,5],[101,2,101,5],[102,2,102,5],[103,2,103,5],[104,2,104,5],[105,2,105,5],[106,2,106,5],[107,2,107,5],[84,2,84,4],[84,5,84,7],[85,2,85,4],[85,5,85,7],[122,15,125,18],[123,2,123,3],[123,4,123,5],[123,6,123,7],[123,8,123,9],[124,2,124,3],[114,2,114,4],[114,5,114,7],[114,8,114,10],[117,2,117,4],[117,5,117,7],[117,8,117,10],[124,4,124,5],[124,6,124,7],[124,8,124,9],[125,2,125,3],[125,4,125,5],[125,6,125,7],[125,8,125,9],[117,11,117,12],[120,1,120,7],[120,12,121,13],[122,4,122,5],[116,2,116,4],[128,2,128,3],[128,4,128,5],[128,6,128,7],[128,8,128,9],[131,1,131,7],[131,10,132,11],[126,2,126,3],[126,4,126,5],[126,6,126,7],[126,8,126,9],[127,2,127,3],[127,4,127,5],[127,6,127,7],[127,8,127,9],[133,14,133,15],[134,2,134,3],[134,4,134,5],[134,6,134,7],[134,8,134,9],[134,10,134,11],[134,12,134,13],[134,14,134,15],[133,2,133,3],[133,4,133,5],[133,6,133,7],[133,8,133,9],[133,10,133,11],[133,12,133,13],[135,14,135,15],[136,2,136,3],[136,4,136,5],[136,6,136,7],[136,8,136,9],[136,10,136,11],[136,12,136,13],[136,14,136,15],[135,2,135,3],[135,4,135,5],[135,6,135,7],[135,8,135,9],[135,10,135,11],[135,12,135,13],[137,14,137,15],[138,12,138,13],[139,2,139,3],[139,4,139,5],[139,6,139,7],[139,8,139,9],[139,10,139,11],[139,12,139,13],[139,14,139,15],[137,2,137,3],[137,4,137,5],[137,6,137,7],[137,8,137,9],[137,10,137,11],[137,12,137,13],[138,2,138,3],[138,4,138,5],[138,6,138,7],[138,8,138,9],[138,10,138,11],[138,14,138,15],[140,14,140,15],[141,2,141,3],[141,4,141,5],[141,6,141,7],[141,8,141,9],[141,10,141,11],[141,12,141,13],[141,14,141,15],[140,2,140,3],[140,4,140,5],[140,6,140,7],[140,8,140,9],[140,10,140,11],[140,12,140,13],[142,14,142,15],[143,1,143,7],[143,8,143,9],[143,10,143,11],[143,12,143,13],[143,14,143,15],[142,2,142,3],[142,4,142,5],[142,6,142,7],[142,8,142,9],[142,10,142,11],[142,12,142,13],[144,14,144,15],[145,1,149,4],[145,12,145,13],[145,14,145,15],[146,12,146,13],[146,14,146,15],[144,2,144,3],[144,4,144,5],[144,6,144,7],[144,8,144,9],[144,10,144,11],[144,12,144,13],[145,6,149,9],[116,5,116,7],[116,8,116,10],[116,11,116,12],[115,2,115,4],[115,5,115,7],[115,8,115,10],[115,11,115,12],[112,11,112,12],[113,11,113,12],[114,11,114,12],[112,2,112,4],[112,5,112,7],[112,8,112,10],[113,2,113,4],[113,5,113,7],[113,8,113,10]]}
[]
[]
[null,"Adapt+"]
[]
[null,"6 Coût du projet et taux de subvention"]
[]
[null,"Vous pourrez déterminer ici le taux de subvention maximal possible puis indiquer les coûts de votre projet."]
[null,null,null,null,null,null,null,null,null,"Les informations relatives à la détermination du taux de subvention sont disponibles dans les informations d'exécution au chapitre 3.2."]
[]
[null,"6.1 Détermination du taux de subvention"]
[]
[null,"Le projet consiste-t-il en une adaptation directe ou indirecte ?"]
[]
[]
[null,null,null,null,null,null,0]
[]
[null,"Le projet concerne-t-il la planification ou la mise en œuvre d'un projet ?"]
[]
[]
[]
[null,null,null,null,null,null,0]
[]
[null,"Votre projet contribue-t-il à prévenir des dommages irréversibles ?"]
[]
[]
[null,null,null,null,null,null,0]
[null,null,null,null,null,null,null,null,null,null,"Taux de subvention",{"$f":"IF(G15<>0,IF(G15=1,25,IF(AND(G15=1,G21=1),NA,IF(AND(G15=2,G21=1),30,40))),\"\")","v":""},"%"]
[null,"Votre projet réduit-il plusieurs risques à la fois ?"]
[null,null,null,null,null,null,0,null,null,null,"Supplément",{"$f":"IF(G15<>0,IF(G15=1,0,IF(SUM(G26,G29)<=3,10,0)),\"\")","v":""},"%"]
[]
[null,null,null,null,null,null,null,null,null,null,"Taux de subvention max. possible",{"$f":"IF(G36=FALSE,SUM(L29,L27),#REF!)","v":0},"%"]
[]
[]
[]
[null,"Souhaitez-vous bénéficier d'un taux de subvention spécifique inférieur au taux maximal possible ?"]
[null,null,null,null,null,null,false]
[null,null,null,null,null,null,{"$f":"IF(G36=TRUE,1,2)","v":2}]
[null,"Si oui, veuillez indiquer le taux d'aide financière requis",null,null,null,null,1]
[null,null,null,"Taux maximal"]
[]
[]
[null,null,null,null,null,null,null,false]
[]
[]
[]
[null,"6.2 Coût du projet"]
[]
[null,"Saisissez les coûts liés au projet. Une distinction est faite entre les coûts totaux et les coûts imputables. "]
[null,"À l'heure actuelle, un exemple de calcul est fourni ici pour faciliter la compréhension."]
[]
[null,"6.2.1 Coût total"]
[]
[null,"Année","Coût [CHF]",null,null,"Action"]
[null,2025,257500]
[null,2026,270000]
[null,2027,70000]
[null,2028,0]
[null,2029,0]
[]
[]
[]
[]
[]
[null,"6.2.2 Coûts imputables"]
[]
[null,"Année","Type de coût",null,"Jalons concernés","Nombre d'heures","Taux horaire","Coût",null,"Contribution max. Confédération (calculée)"]
[null,null,null,null,null,null,null,null,null,null,null,null,null,"Les informations relatives aux coûts imputables figurent dans les communications d'exécution disponibles sous le lien suivant :"]
[null,2025,"Réalisation LT1",null,"J1",null,null,10000,null,{"$f":"IF($L$31>0,$L$31/100*H68,\"\")","v":""}]
[null,2025,"Réalisation LT2",null,"J1",null,null,5000,null,{"$f":"IF($L$31>0,$L$31/100*H69,\"\")","v":""},null,null,null,"Communication de l'OFEV"]
[null,2026,"Réalisation LT3",null,"J1",null,null,20000,null,""]
[null,2026,"Réalisation LT4",null,"J2",null,null,20000,null,""]
[null,2027,"Réalisation LT5",null,"J3",null,null,20000,null,"",null,null,null,"Une justification détaillée doit être téléchargée dans des documents séparés."]
[null,2027,"Réalisation LT6",null,"J4",null,null,20000,null,"",null,null,null,"Téléverser un nouveau document"]
[null,null,null,null,null,null,null,null,null,""]
[null,null,null,null,null,null,null,null,null,""]
[null,null,null,null,null,null,null,null,null,""]
[null,null,null,null,null,null,null,null,null,""]
[]
[]
[null,"6.2.3 Total coûts imputables"]
[]
[null,"Année","Total coûts imputables",null,null,"Contribution totale max. Adapt+ calculée"]
[null,2025,{"$f":"SUMIF($B$68:$B$77,B83,$H$68:$I$77)","v":15000},null,null,{"$f":"SUMIF($B$68:$B$77,B83,$J$68:$L$77)","v":0}]
[null,2026,{"$f":"SUMIF($B$68:$B$77,B84,$H$68:$I$77)","v":40000},null,null,{"$f":"SUMIF($B$68:$B$77,B84,$J$68:$L$77)","v":0}]
[null,2027,{"$f":"SUMIF($B$68:$B$77,B85,$H$68:$I$77)","v":40000},null,null,{"$f":"SUMIF($B$68:$B$77,B85,$J$68:$L$77)","v":0}]
[null,2028,{"$f":"SUMIF($B$68:$B$77,B86,$H$68:$I$77)","v":0},null,null,{"$f":"SUMIF($B$68:$B$77,B86,$J$68:$L$77)","v":0}]
[null,2029,0,null,null,0]
[null,"Total",{"$f":"SUM(C83:E85)","v":95000},null,null,{"$f":"SUM(F83:H85)","v":0},200000]
[]
[]
[]
[null,"6.3 Moyens disponibles"]
[]
[null,"6.3.1 Moyens disponibles"]
[null,"Saisissez les moyens disponibles pour le projet. Une distinction est faite entre les fonds propres, les fonds tiers et les fonds tiers provenant d'autres contributions fédérales."]
[]
[null,"Année","Type de moyens",null,null,null,"Coûts [CHF]"]
[null,2025,"Fonds propre",null,null,null,null,null,100000]
[null,2025,"Fonds tiers",null,null,null,null,null,150000]
[null,2026,"Fonds propre",null,null,null,null,null,100000]
[null,2026,"Fonds tiers",null,null,null,null,null,50000]
[null,2026,"Fonds tiers de contributions fédérales",null,null,null,null,null,10000]
[null,2026,"Fonds propre",null,null,null,null,null,100000]
[null,2027,"Fonds tiers",null,null,null,null,null,50000]
[]
[]
[]
[]
[]
[null,"6.3.2 Total des fonds disponibles"]
[]
[null,"Année","Fonds propre",null,null,"Fonds tiers",null,null,"Fonds tiers de contributions fédérales",null,null,null,"Total Année"]
[null,2025,{"$f":"SUMIFS($I$98:$I$108,$B$98:$B$108,B113,$C$98:$C$108,C$112)","v":100000},null,null,{"$f":"SUMIFS($I$98:$I$108,$B$98:$B$108,$B113,$C$98:$C$108,F$112)","v":150000},null,null,{"$f":"SUMIFS($I$98:$I$108,$B$98:$B$108,$B113,$C$98:$C$108,I$112)","v":0},null,null,{"$f":"SUM(C113:K113)","v":250000},null,null,{"$f":"IF(OR(ISBLANK(I113),I113=0),1,0)","v":1},{"$f":"SUM(O113:O115)","v":2}]
[null,2026,{"$f":"SUMIFS($I$98:$I$108,$B$98:$B$108,B114,$C$98:$C$108,C$112)","v":200000},null,null,{"$f":"SUMIFS($I$98:$I$108,$B$98:$B$108,$B114,$C$98:$C$108,F$112)","v":50000},null,null,{"$f":"SUMIFS($I$98:$I$108,$B$98:$B$108,$B114,$C$98:$C$108,I$112)","v":10000},null,null,{"$f":"SUM(C114:K114)","v":260000},null,null,{"$f":"IF(OR(ISBLANK(I114),I114=0),1,0)","v":0}]
[null,2027,{"$f":"SUMIFS($I$98:$I$108,$B$98:$B$108,B115,$C$98:$C$108,C$112)","v":0},null,null,50000,null,null,0,null,null,{"$f":"SUM(C115:K115)","v":50000},null,null,1]
[null,2028,{"$f":"SUMIFS($I$98:$I$108,$B$98:$B$108,B116,$C$98:$C$108,C$112)","v":0},null,null,0,null,null,0,null,null,0]
[null,2029,{"$f":"SUMIFS($I$98:$I$108,$B$98:$B$108,B117,$C$98:$C$108,C$112)","v":0},null,null,0,null,null,0,null,null,0]
[null,"Total",{"$f":"SUM(C113:E117)","v":300000},null,null,{"$f":"SUM(F113:H117)","v":250000},null,null,{"$f":"SUM(I113:K117)","v":10000},null,null,{"$f":"SUM(C118:K118)","v":560000},{"$f":"SUM(C118:K118)","v":560000}]
[]
[]
[null,"6.4 Contributions Adapt+ et fonds effectifs",null,null,null,null,null,null,null,null,null,null,"Montant maximal souhaité (montant maximal <= contribution Adapt+)"]
[]
[null,"Année",null,"Contribution Adapt+ calculée.","En % imputable",null,null,"Autres montants Confédération",null,"Contributions Adapt+ et fonds effectifs","% imputable",null,"Année","Montant souhaité",null,"Sous « Montant souhaité », vous pouvez saisir un montant inférieur au montant maximal de la subvention. Celui-ci sera repris dans la suite de la procédure."]
[null,2025,{"$f":"SUMIF($B$68:$B$77,B124,$J$68:$L$77)","v":0},null,{"$f":"IF(C124>0,C124*100/C83,\"\")","v":""},null,{"$f":"SUMIF($B$113:$B$117,B124,$I$113:$K$117)","v":0},null,{"$f":"C124-G124","v":0},null,{"$f":"IF(I124>0,I124*100/C83,\"\")","v":""},null,2026,0]
[null,2026,{"$f":"SUMIF($B$68:$B$77,B125,$J$68:$L$77)","v":0},null,{"$f":"IF(C125>0,C125*100/C84,\"\")","v":""},null,{"$f":"SUMIF($B$113:$B$117,B125,$I$113:$K$117)","v":10000},null,{"$f":"C125-G125","v":-10000},null,{"$f":"IF(I125>0,I125*100/C84,\"\")","v":""},null,2027,0]
[null,2027,0,null,"",null,0,null,0,null,{"$f":"IF(I126>0,I126*100/C85,\"\")","v":""},null,2028,0]
[null,2028,0,null,"",null,0,null,0,null,"",null,2029,0]
[null,2029,0,null,"",null,0,null,0,null,"",null,2030,0]
[null,"Total",{"$f":"SUM(C124:D128)","v":0},null,{"$f":"IF(C129<>0,AVERAGE(E124:F128),\"\")","v":""},null,{"$f":"SUM(G124:H128)","v":10000},null,{"$f":"SUM(I124:I128)","v":-10000},null,{"$f":"I129*100/C88","v":-10.526315789473685},null,"Total",{"$f":"SUM(N124:N128)","v":0}]
[]
[]
[null,"6.5 Aperçu général",null,null,null,null,null,null,null,null,"ATTENTION : double financement"]
[]
[null,"Année","Coût total",null,"Total fonds",null,"Dont ressources propres",null,"Dont ressources tiers",null,"dont fonds tiers contributions fédérales",null,"dont contributions Adapt+",null,"Différence"]
[null,2025,{"$f":"SUMIF($B$54:$B$61,B135,$C$54:$E$61)","v":257500},null,{"$f":"SUMIF($B$113:$B$117,B135,$M$113:$M$117)+SUMIF($B$124:$B$128,B135,$I$124:$J$128)","v":0},null,{"$f":"SUMIF($B$113:$B$117,B135,$C$113:$E$117)","v":100000},null,{"$f":"SUMIF($B$113:$B$117,B135,$F$113:$H$117)","v":150000},null,{"$f":"SUMIF($B$113:$B$117,B135,$I$113:$K$117)","v":0},null,{"$f":"IF(N124>0,MIN(N124,I124),I124)","v":0},null,{"$f":"E135-C135","v":-257500}]
[null,2026,{"$f":"SUMIF($B$54:$B$61,B136,$C$54:$E$61)","v":270000},null,{"$f":"SUMIF($B$113:$B$117,B136,$M$113:$M$117)+SUMIF($B$124:$B$128,B136,$I$124:$J$128)","v":-10000},null,{"$f":"SUMIF($B$113:$B$117,B136,$C$113:$E$117)","v":200000},null,{"$f":"SUMIF($B$113:$B$117,B136,$F$113:$H$117)","v":50000},null,{"$f":"SUMIF($B$113:$B$117,B136,$I$113:$K$117)","v":10000},null,{"$f":"IF(N125>0,MIN(N125,I125),I125)","v":-10000},null,{"$f":"E136-C136","v":-280000}]
[null,2027,70000,null,{"$f":"SUMIF($B$113:$B$117,B137,$M$113:$M$117)+SUMIF($B$124:$B$128,B137,$I$124:$J$128)","v":0},null,0,null,50000,null,0,null,0,null,-70000]
[null,2028,0,null,0,null,0,null,0,null,0,null,0,null,0]
[null,2029,0,null,0,null,0,null,0,null,0,null,0]
[null,"Total",{"$f":"SUM(C135:C139)","v":597500},{"$f":"SUMIF($B$54:$B$56,B140,$C$54:$E$56)","v":0},{"$f":"SUM(E135:E139)","v":-10000},{"$f":"SUMIF($B$54:$B$56,D140,$C$54:$E$56)","v":0},{"$f":"SUM(G135:H139)","v":300000},null,{"$f":"SUM(I135:J139)","v":250000},null,{"$f":"SUM(K135:L139)","v":10000},null,{"$f":"SUM(M135:N139)","v":-10000},null,{"$f":"E140-C140","v":-607500}]
[]
[]
[]
[null,"6.6 Documents"]
[]
[null,"Téléverser un nouveau document",null,null,null,null,"Tous les fonds propres et les fonds tiers provenant d'autres sources (canton ou similaire) doivent être attestés par un document. Si l'octroi de certaines parts de financement dépend de l'aide financière d'Adapt+, cela doit également être prouvé ici au moyen d'un document délivré par l'autorité compétente."]

{"sheet":"7 Échéancier","index":7,"n_rows":23,"n_cols":17,"rows_kept":23,"cut":false,"hidden":false,"merged":[[4,1,4,9],[6,1,6,7],[12,16,15,19],[21,16,24,19],[13,13,13,14],[12,13,12,14],[15,13,15,14],[16,13,16,14]]}
[]
[]
[null,"Adapt+"]
[]
[null,"7 Echéancier"]
[]
[null,"7.1 Ébauche du plan de paiements"]
[]
[]
[null,"La période de référence couvre la période comprise entre le 1er juillet et le 30 juin de l'année suivante."]
[null,"Pour les versements effectués en septembre, les rapports doivent être remis au plus tard le 31 juillet."]
[]
[null,"Jalon","Date réalisation","Coût",null,"Année","Total",null,"Période de paiement","Dépenses jusqu'au","Paiement jusqu'au","Montant","optional","Montant maximal possible",null,null,"Un acompte maximal de 20 % du montant de la subvention peut être versé après réception du compte rendu de la réunion de lancement. Ce paiement sera déduit de la première facture annuelle."]
[null,"J1","2026-06-01",{"$f":"IF(ISBLANK(B14),\"\",SUMIF('6 Coûts'!E68:E77,'7 Échéancier'!B14,'6 Coûts'!J68:L77))","v":0},null,2026,{"$f":"SUMIFS($D$14:$D$22,$C$14:$C$22,\"<=\"&J15,$C$14:$C$22,\">\"&J14)","v":0},null,"Acompte max. 20%","2025-11-01","2025-12-31",null,false,{"$f":"IF(M14=TRUE,0.2*G18,\"\")","v":""}]
[null,"J2","2026-06-15",{"$f":"IF(ISBLANK(B15),\"\",SUMIF('6 Coûts'!E69:E78,'7 Échéancier'!B15,'6 Coûts'!J69:L78))","v":0},null,2027,{"$f":"SUMIFS($D$14:$D$22,$C$14:$C$22,\"<=\"&J16,$C$14:$C$22,\">\"&J15)","v":0},null,"Paiement 2026","2026-06-30","2026-09-30",{"$f":"G14-L14","v":0}]
[null,"J3","2026-03-26",{"$f":"IF(ISBLANK(B16),\"\",SUMIF('6 Coûts'!E70:E79,'7 Échéancier'!B16,'6 Coûts'!J70:L79))","v":0},null,2028,{"$f":"SUMIFS($D$14:$D$22,$C$14:$C$22,\"<=\"&J17,$C$14:$C$22,\">\"&J16)","v":0},null,"Paiement 2027","2027-06-30","2027-09-30",{"$f":"G15","v":0}]
[null,"J4","2027-02-01",{"$f":"IF(ISBLANK(B17),\"\",SUMIF('6 Coûts'!E71:E80,'7 Échéancier'!B17,'6 Coûts'!J71:L80))","v":0},null,2029,{"$f":"SUMIFS($D$14:$D$22,$C$14:$C$22,\"<=\"&DATE(2029,12,31),$C$14:$C$22,\">\"&J17)","v":0},null,"Paiement 2028","2028-06-30","2028-09-30",{"$f":"G16","v":0}]
[null,"J5","2028-06-30",{"$f":"IF(ISBLANK(B18),\"\",SUMIF('6 Coûts'!E72:E81,'7 Échéancier'!B18,'6 Coûts'!J72:L81))","v":0},null,"Total",{"$f":"SUM(G14:G17)","v":0},null,"Paiement 2029","2029-06-30","2029-09-30",{"$f":"G17","v":0}]
[null,null,"2029-06-30",{"$f":"IF(ISBLANK(B19),\"\",SUMIF('6 Coûts'!E73:E82,'7 Échéancier'!B19,'6 Coûts'!J73:L82))","v":""},null,null,null,null,"Total",null,null,{"$f":"SUM(L14:L18)","v":0}]
[null,null,null,{"$f":"IF(ISBLANK(B20),\"\",SUMIF('6 Coûts'!E74:E83,'7 Échéancier'!B20,'6 Coûts'!J74:L83))","v":""}]
[null,null,null,{"$f":"IF(ISBLANK(B21),\"\",SUMIF('6 Coûts'!E75:E84,'7 Échéancier'!B21,'6 Coûts'!J75:L84))","v":""}]
[null,null,null,{"$f":"IF(ISBLANK(B22),\"\",SUMIF('6 Coûts'!E76:E85,'7 Échéancier'!B22,'6 Coûts'!J76:L85))","v":""},null,null,null,null,"Contrôle du paiement final au moins 20 %",null,null,null,null,null,null,null,"Le paiement final doit généralement correspondre à environ 20 % du montant de la subvention totale et ne devrait pas être inférieur à celui-ci."]
[null,null,null,null,null,null,null,null,"Paiement final","min. 20%",null,{"$f":"0.2*G18","v":0}]

{"sheet":"8 Confirmation","index":8,"n_rows":13,"n_cols":7,"rows_kept":13,"cut":false,"hidden":false,"merged":[[2,1,2,3],[4,1,4,9],[6,1,6,7],[9,1,9,10],[12,4,13,5],[12,6,13,7]]}
[]
[]
[null,"Adapt+"]
[]
[null,"8 Confirmation"]
[]
[null,"8.1 Confirmation"]
[]
[]
[null,"En soumettant sa demande, le requérant confirme avoir compris les conditions et les obligations du programme de soutien Adapt+ et avoir rempli le formulaire de demande de manière véridique. Tout manquement peut entraîner une réduction ou une restitution de la contribution."]
[]
[]
[null,null,null,false,"non éligible",null,"éligible"]

{"sheet":"Listen","index":9,"n_rows":41,"n_cols":11,"rows_kept":41,"cut":false,"hidden":true,"merged":[]}
[]
["Arbeitspaket",null,"J1",null,"Jalon",null,"Gestion des eaux et hydrologie","Commune","Français","Effets de la hausse des températures sur la santé et sur la productivité","ZH"]
["LT1",null,"J2",null,"Lot de travaux",null,"Gestion des dangers naturels","Canton","Italien","Effets de la hausse des températures sur les infrastructures","BE"]
["LT2",null,"J3",null,"Fin",null,"Agriculture","Suisse entière","Allemand","Effets de la hausse des températures sur l'agriculture et l'économie forestière","LU"]
["LT3",null,"J4",null,"Autres",null,"Gestion des forêts","Régional",null,"Etés pauvres en pluie","UR"]
["LT4",null,"J5",null,null,null,"Énergie","Supra-régional",null,"Danger d'incendie de la forêt accru","SZ"]
["LT5",null,"J6",null,null,null,"Tourisme",null,null,"Faibles niveaux d'eau","OW"]
["LT6",null,"J7",null,null,null,"Gestion de la biodiversité",null,null,"Crues d'ampleur","NW"]
["LT7",null,"J8",null,null,null,"Santé humaine",null,null,"Ruissellement et inondations locales","GL"]
["LT8",null,"J9",null,null,null,"Santé animale et sécurité alimentaire",null,null,"Mouvement de terrain gravitaires","ZG"]
["LT9",null,null,null,null,null,"Développement territorial",null,null,"Grêle et tempêtes","FR"]
[null,null,null,null,null,null,"Logement",null,null,"Températures douces","SO"]
[null,null,null,null,null,null,"Transports",null,null,"Hivers peu enneigés","BS"]
[null,null,null,null,null,null,"Sécurité d'approvisionnement",null,null,"Dégradation des écosystèmes et de leurs services","BL"]
[null,null,null,null,null,null,"Protection des sols",null,null,"Multiplication des organismes nuisibles","SH"]
[null,null,null,null,null,null,null,null,null,"Altération du paysage","AR"]
[null,null,null,null,null,null,null,null,null,"Autres","AI"]
[null,null,null,null,null,null,null,null,null,"Minimisation des risques des changements climatiques","SG"]
[null,null,null,null,null,null,null,null,null,"Protection de la population, des biens et des ressources naturelles vitales","GR"]
[null,null,null,null,null,null,"Mesures de protection en cas de vagues de chaleur",null,null,"Augmentation de la capacité d’adaptation de la société, de l’économie et de l’environnement","AG"]
[null,null,null,null,null,null,"Élaboration de plans canicule",null,null,null,"TG"]
["Fonds propre",null,null,null,null,null,"Arbres dans les zones bâties",null,null,null,"TI"]
["Fonds tiers",null,null,null,null,null,"Désimperméabilisation des surfaces en zone bâtie",null,null,null,"VD"]
["Fonds tiers de contributions fédérales",null,null,null,null,null,"L’eau dans les zones bâties",null,null,"la durabilité, ","VS"]
[null,null,null,null,null,null,"Végétalisation des bâtiments dans les zones bâties",null,null,"l'action commune de la Confédération, des cantons, des communes et des particuliers, ","NE"]
[null,null,null,null,null,null,"Eléments d’ombrage dans les zones d’habitation",null,null,"la compatibilité des adaptations avec la protection du climat (c'est-à-dire la réduction des émissions) et ","GE"]
[null,null,null,null,null,null,"Systèmes d’air froid dans les zones bâties",null,null,"la prise en compte des connaissances scientifiques. ","JU"]
[null,null,null,null,null,null,"Espaces verts adaptés au climat en zones bâties",null,null,null,"plusieurs"]
[null,null,null,null,null,null,"Des eaux adaptées au climat"]
[null,null,null,null,null,null,"Instruments de planification pour la gestion de la sécheresse"]
[null,null,null,null,null,null,"Concepts d’irrigation pour faire face à la sécheresse estivale"]
[null,null,null,null,null,null,"Utilisation de l’eau de pluie"]
[null,null,null,null,null,null,"Concepts et analyses de potentiel d’incendie de forêt"]
[null,null,null,null,null,null,"Analyse des risques naturels liés au climat"]
[null,null,null,null,null,null,"Mesures de protection contre le ruissellement de surface"]
[null,null,null,null,null,null,"Concepts/mesures de ville-éponge"]
[null,null,null,null,null,null,"Concepts/mesures de territoire-éponge hors zones bâties"]
[null,null,null,null,null,null,"Diversification des offres touristiques"]
[null,null,null,null,null,null,"Surveillance des organismes nuisibles sensibles au climat"]
[null,null,null,null,null,null,"Surveillance des vecteurs de maladies sensibles au climat"]
[null,null,null,null,null,null,"Conservation des espèces adaptée au climat"]

{"sheet":"Berechnungen","index":10,"n_rows":0,"n_cols":0,"rows_kept":0,"cut":false,"hidden":true,"merged":[]}